Workbook

Sheet CALCULO DE RESERVA
CA1: 0 | CB1: 0
A2: TIPO DE OFERTA | B2: OFERTA 2019 | C2: =+IF(B2="","",IF(B2=BY2,"Min. Vr Aseg Vs Preten","Máx. Exposición")) -> Máx. Exposición | BY2: OFERTA ANTERIOR (DIC-2017) | CA2: 2000 | CB2: 260100 | CD2: 0 | CE2: 10 | CF2: 1 | CI2: Nombre Municipio | CJ2: Nombre Departamento | CK2: ZONA | CM2: RAM0 | CN2: DESCRIPCION | CO2: SBU
BY3: NUEVA OFERTA (ENE-2018) | CA3: 2001 | CB3: 286000 | CD3: 10.1 | CE3: 25 | CF3: 2 | CI3: MEDELLIN | CJ3: ANTIOQUIA | CK3: OCCIDENTE | CM3: PH | CN3: HUESPEDES HOTELES | CO3: GRO
BY4: SI | CA4: 2002 | CB4: 309000 | CD4: 25.1 | CE4: 50 | CF4: 4 | CI4: ABEJORRAL | CJ4: ANTIOQUIA | CK4: OCCIDENTE | CM4: EX | CN4: EXEQUIAS | CO4: GRO | CR4: CUNDINAMARCA | CS4: CENTRO
A5: Pretensiones | B5: Total Pretensiones | C5: Liquidación de perjuicios | E5: Deducible | F5: Año | G5: Valor | BY5: NO | CA5: 2003 | CB5: 332000 | CD5: 50.1 | CE5: 195 | CF5: 8 | CI5: ABRIAQUI | CJ5: ANTIOQUIA | CK5: OCCIDENTE | CM5: EX | CN5: EXEQUIAS | CO5: GRO | CR5: ARAUCA | CS5: CENTRO | CU5: BOGOTA | CV5: CRHISTIAN ESPINOSA
A6: Daño Emergente | B6: 122633607 | E6: SMMLV | G6: 1300000 | CA6: 2004 | CB6: 358000 | CD6: 195.1 | CE6: 583 | CF6: 16 | CI6: ALEJANDRIA | CJ6: ANTIOQUIA | CK6: OCCIDENTE | CM6: LC | CN6: LIBERTY COLLEGE | CO6: GRO | CR6: BOYACA | CS6: CENTRO | CU6: CENTRO | CV6: MAURICIO CLEVES
A7: Lucro cesante | B7: 381480000 | C7: 157984084 | D7: VD | E7: Suma detallada | G7: =F7 -> 0 | BY7: REMOTO | BZ7: 0.1 | CA7: 2005 | CB7: 381500 | CD7: 583.1 | CE7: 971 | CF7: 24 | CI7: AMAGA | CJ7: ANTIOQUIA | CK7: OCCIDENTE | CM7: LA | CN7: LIBERTY COLLEGE INDIV ANUAL | CO7: GRO | CR7: CASANARE | CS7: CENTRO | CU7: ORIENTE | CV7: SANTIAGO PEREZ
A8: Daño Morales | B8: 250000000 | C8: 126115200 | D8: VD, 2 HIJOS Y ESPOSA | E8: Cantidad SMMLV | G8: =+G6*F8 -> 0 | BY8: EVENTUAL | BZ8: 0.3 | CA8: 2006 | CB8: 408000 | CD8: 971.1 | CE8: 1942 | CF8: 32 | CI8: AMALFI | CJ8: ANTIOQUIA | CK8: OCCIDENTE | CM8: 61 | CN8: A. T. E. P. | CO8: WOR | CR8: META | CS8: CENTRO | CU8: SUROCCIDENTE | CV8: DENNIS DURAN
A9: Daño a la Vida de Relación | B9: 60000000 | C9: 31528800 | D9: VD | E9: Porcentaje | G9: =+F9*B18 -> 0 | BY9: PROBABLE | BZ9: 0.6 | CA9: 2007 | CB9: 433700 | CD9: 1942.1 | CE9: 5000 | CF9: 36 | CI9: ANDES | CJ9: ANTIOQUIA | CK9: OCCIDENTE | CM9: LP | CN9: LIBERTY VIDA PESOS | CO9: MAT | CR9: HUILA | CS9: CENTRO | CU9: NORTE | CV9: SANTIAGO PEREZ
A10: Daño a la Salud | E10: Ded. A Aplicar | G10: =+MAX(G7:G9) -> 0 | CA10: 2008 | CB10: 461500 | CD10: 5000.1 | CE10: 10000 | CF10: 40 | CI10: ANGELOPOLIS | CJ10: ANTIOQUIA | CK10: OCCIDENTE | CM10: AA | CN10: ACCIDENTES PERSONALES | CO10: GRO | CR10: TOLIMA | CS10: CENTRO | CU10: OCCIDENTE | CV10: MAURICIO CLEVES
A11: Otros | B11: 60000000 | BY11: Normal | BZ11: =+B25 -> 20800000 | CA11: 2009 | CB11: 496900 | CD11: 10000.1 | CE11: 10000000 | CF11: 52 | CI11: ANGOSTURA | CJ11: ANTIOQUIA | CK11: OCCIDENTE | CM11: EX | CN11: EXEQUIAS | CO11: GRO | CR11: CAQUETA | CS11: CENTRO
A12: Total | B12: =SUM(B6:B11) -> 874113607 | C12: =SUM(C6:C11) -> 315628084 | E12: Forma de Pago de Honorarios | BY12: FNA | BZ12: =+B25/2 -> 10400000 | CA12: 2010 | CB12: 515000 | CI12: ANORI | CJ12: ANTIOQUIA | CK12: OCCIDENTE | CM12: AA | CN12: ACCIDENTES PERSONALES | CO12: GRO | CR12: PUTUMAYO | CS12: CENTRO
A13: Descripcion pretensiones | E13: Contestación | F13: 0.5 | G13: =ROUND(IF(C25=BY11,F13*B25,D25*F13),0) -> 10400000 | BY13: Megabus | BZ13: =3*G6 -> 3900000 | CA13: 2011 | CB13: =CB12+(CB12*4%) -> 535600 | CI13: SANTAFE DE ANTIOQUIA | CJ13: ANTIOQUIA | CK13: OCCIDENTE | CM13: VEP | CN13: LIBERTY VIDA EFICAZ $ MENSUAL | CO13: MAT | CR13: GUAINIA | CS13: CENTRO
A14: Valor Asegurado | B14: 1800000000 | D14: =72000000 -> 72000000 | E14: Alegatos | F14: =+IF(B2=BY2,30%,0%) -> 0 | G14: =ROUND(IF(C25=BY11,F14*B25,D25*F14),0) -> 0 | BY14: Reficar | BZ14: =2*G6 -> 2600000 | CA14: 2012 | CB14: 566700 | CD14: 0 | CE14: 10 | CF14: 0.5 | CI14: ANZA | CJ14: ANTIOQUIA | CK14: OCCIDENTE | CM14: 99 | CN14: ADN DELIMA MARSH ORGANIZ CALI | CR14: VAUPES | CS14: CENTRO
A15: =+IF(B2=BY2,"Total Pretensiones","Máxima Exposición") -> Máxima Exposición | B15: =+IF(B2=BY2,B12,MIN(B12,C12,B14)) -> 315628084 | D15: =D14*20% -> 14400000 | E15: Fallo Ejecutoriado | F15: 0.5 | G15: =ROUND(IF(C25=BY11,F15*B25,D25*F15),0) -> 10400000 | BY15: Normal | BZ15: =+B24 -> 189376850.4 | CA15: 2013 | CB15: 589500 | CD15: 10.1 | CE15: 25 | CF15: 1 | CI15: APARTADO | CJ15: ANTIOQUIA | CK15: OCCIDENTE | CM15: 165 | CN15: RENTA DIA HOSP COL ANUAL | CO15: HEA | CR15: GUAVIARE | CS15: CENTRO
A16: Vr. Indemn antes Deducible | B16: =+MIN(B14:B15,B12) -> 315628084 | G16: Siniestro | BY16: FNA | BZ16: 0 | CA16: 2014 | CB16: 616000 | CD16: 25.1 | CE16: 50 | CF16: 2 | CI16: ARBOLETES | CJ16: ANTIOQUIA | CK16: OCCIDENTE | CM16: RDH | CN16: SALUD ACTIVA PAGO MENSUAL | CO16: HEI | CR16: AMAZONAS | CS16: CENTRO
A17: Coaseguro | B17: 1 | G17: Unidad de Negocio | BY17: Megabus | BZ17: 0 | CA17: 2015 | CB17: 644350 | CD17: 50.1 | CE17: 195 | CF17: 4 | CI17: ARGELIA | CJ17: ANTIOQUIA | CK17: OCCIDENTE | CM17: LP | CN17: LIBERTY VIDA PESOS | CO17: MAT | CR17: SAN ANDRES | CS17: CENTRO
A18: Vr. Indemn aplica coaseguro | B18: =+B16*B17 -> 315628084 | G18: Mes | BY18: Reficar | BZ18: 3500000 | CA18: 2016 | CB18: Es el 2015 | CC18: 689454 | CD18: 195.1 | CE18: 583 | CF18: 8 | CI18: ARMENIA | CJ18: ANTIOQUIA | CK18: OCCIDENTE | CM18: RDH | CN18: RENTA DIA HOSP COL ANUAL | CO18: HEA | CR18: BOGOTA | CS18: BOGOTA
A19: Deducible | B19: =G10 -> 0 | G19: Año | BY19: RCC | CA19: 2017 | CB19: Es el 2015 | CC19: 737717 | CD19: 583.1 | CE19: 971 | CF19: 10 | CI19: BARBOSA | CJ19: ANTIOQUIA | CK19: OCCIDENTE | CM19: CU | CN19: CUMPLIMIENTO OFICIAL | CO19: BON | CR19: SANTANDER | CS19: ORIENTE
A20: Valoración | B20: =+B18-B19 -> 315628084 | C20: =IF(ISERROR($B$20/$G$6),0,$B$20/$G$6) -> 242.7908338 | G20: Ramo | BY20: LM1P | CA20: 2018 | CB20: 781242 | CD20: 971.1 | CE20: 1942 | CF20: 12 | CI20: BELMIRA | CJ20: ANTIOQUIA | CK20: OCCIDENTE | CM20: PH | CN20: HUESPEDES HOTELES | CO20: GRO | CR20: NORTE DE SANTANDER | CS20: ORIENTE
A21: Contingencia + Motivos | B21: PROBABLE | G21: Póliza | BY21: LM2P | CA21: 2019 | CB21: 828116 | CD21: 1942.1 | CE21: 5000 | CF21: 14 | CI21: BELLO | CJ21: ANTIOQUIA | CK21: OCCIDENTE | CM21: AO | CN21: SOAT | CO21: SOA | CR21: ANTIOQUIA | CS21: OCCIDENTE
G22: Certificado | BY22: DBT | CA22: 2020 | CB22: 877803 | CD22: 5000.1 | CE22: 10000 | CF22: 16 | CI22: BETANIA | CJ22: ANTIOQUIA | CK22: OCCIDENTE | CM22: KB | CN22: AMIT PROPIED BIEN COMUN ANUAL | CO22: OTH | CR22: CHOCO | CS22: OCCIDENTE
A23: Total Reserva | G23: Abogado | BY23: PPD | CD23: 10000.1 | CE23: 10000000 | CF23: 20 | CI23: BETULIA | CJ23: ANTIOQUIA | CK23: OCCIDENTE | CM23: TB | CN23: TERREMOTO DE BIENES COMUNES | CO23: OTH | CR23: LA GUAJIRA | CS23: NORTE
A24: Reserva por Amparo | B24: =+IF(ISERROR(VLOOKUP(B21,BY7:BZ9,2,0)*B20),0,VLOOKUP(B21,BY7:BZ9,2,0)*B20) -> 189376850.4 | C24: Normal | D24: =+VLOOKUP(C24,BY15:BZ18,2,0) -> 189376850.4 | G24: Demandante | BY24: PTD | CI24: CIUDAD BOLIVAR | CJ24: ANTIOQUIA | CK24: OCCIDENTE | CM24: 713 | CN24: HOGAR DULCE HOGAR MENSUAL | CO24: OTH | CR24: CESAR | CS24: NORTE
A25: Reserva por Honorarios | B25: =+IF(B2="OFERTA 2019",LOOKUP(C20,$CD$31:$CF$39,$CF$31:$CF$39)*G6,LOOKUP(C20,$CD$2:$CF$11,$CF$2:$CF$11)*G6) -> 20800000 | C25: Normal | D25: =+VLOOKUP(C25,BY11:BZ14,2,0) -> 20800000 | G25: Demandado | BY25: SALARIOS Y PRESTACIONES | CD25: 1 | CE25: 10 | CF25: 0.5 | CI25: BRICEÑO | CJ25: ANTIOQUIA | CK25: OCCIDENTE | CM25: 228 | CN25: EXEQUIAL GAVIRIA COL ANUAL | CO25: GRO | CR25: ATLANTICO | CS25: NORTE
A26: Gastos Adicionales | B26: 0 | G26: Fecha siniestro | BY26: PLO | CD26: 10.1 | CE26: 25 | CF26: 1 | CI26: BURITICA | CJ26: ANTIOQUIA | CK26: OCCIDENTE | CM26: PY | CN26: PYME | CO26: OTH | CR26: BOLIVAR | CS26: NORTE
A27: Hon. Apoderado | B27: 310000 | C27: =+B27+B25 -> 21110000 | G27: Hechos | BY27: RCPM | CD27: 25.1 | CE27: 50 | CF27: 2 | CI27: CACERES | CJ27: ANTIOQUIA | CK27: OCCIDENTE | CM27: GD | CN27: GRUPO VIDA ANUAL | CO27: GRO | CR27: CORDOBA | CS27: NORTE
A28: Beneficio Procesal | B28: =+IF(OR(C28="",C28=BY5),0,IF(AND(C28=BY4,B2=BY2),LOOKUP(C20,$CD$14:$CF$23,$CF$14:$CF$23)*G6,LOOKUP(C20,$CD$25:$CF$29,$CF$25:$CF$29)*G6)) -> 0 | D28: =+B28/2 -> 0 | E28: 50% Beneficio | G28: Amparo | BY28: DETRIMENTO PATRIMONIAL | CD28: 50.1 | CE28: 195 | CF28: 4 | CI28: CAICEDO | CJ28: ANTIOQUIA | CK28: OCCIDENTE | CM28: Z2 | CN28: HELP PLUS INDIVIDUAL ANUAL | CO28: HEI | CR28: SUCRE | CS28: NORTE
G29: Valoración | BY29: HURTO | CD29: 195 | CE29: 10000000 | CF29: 6 | CI29: CALDAS | CJ29: ANTIOQUIA | CK29: OCCIDENTE | CM29: VEP | CN29: LIBERTY VIDA EFICAZ US ANUAL | CO29: MAT | CR29: MAGDALENA | CS29: NORTE
A30: =+IF(B21=BY9,"Se debe Conciliar. Validar Eventual Responsabilidad Compartida","") -> Se debe Conciliar. Validar Eventual Responsabilidad Compartida | G30: Ciudad | BY30: BASICO | CI30: CAMPAMENTO | CJ30: ANTIOQUIA | CK30: OCCIDENTE | CM30: SE | CN30: TOTAL HELP ESENCIAL TRIMESTRAL | CO30: HEI | CR30: VALLE DEL CAUCA | CS30: SUROCCIDENTE
A31: Porcentaje Mínimo | B31: =+IF(A30="",0%,30%) -> 0.3 | C31: =+B31*B20 -> 94688425.2 | G31: Juzgado | BY31: GASTOS MEDICOS | CD31: 0 | CE31: 25 | CF31: 3 | CI31: CAÑASGORDAS | CJ31: ANTIOQUIA | CK31: OCCIDENTE | CM31: RDH | CN31: RENTA DIA HOSP COL ANUAL | CO31: HEA | CR31: CAUCA | CS31: SUROCCIDENTE
A32: Porcentaje Máximo | B32: =+IF(A30="",0%,80%) -> 0.8 | C32: =+B32*B20 -> 252502467.2 | G32: Radicado | BY32: FACTURAS | CD32: 25.1 | CE32: 50 | CF32: 4 | CI32: CARACOLI | CJ32: ANTIOQUIA | CK32: OCCIDENTE | CM32: RDH | CN32: RENTA DIA HOSP IND ANUAL | CO32: HEI | CR32: NARIÑO | CS32: SUROCCIDENTE
A33: Valor conciliado | C33: 0 | G33: Naturaleza del proceso | BY33: IP | CD33: 50.1 | CE33: 195 | CF33: 8 | CI33: CARAMANTA | CJ33: ANTIOQUIA | CK33: OCCIDENTE | CM33: MT | CN33: MOTOCICLETAS ANUAL | CO33: AUP | CR33: QUINDIO | CS33: SUROCCIDENTE
G34: Jurisdicción | BY34: MUERTE | CD34: 195.1 | CE34: 583 | CF34: 16 | CI34: CAREPA | CJ34: ANTIOQUIA | CK34: OCCIDENTE | CM34: RC | CN34: RESPONSABILIDAD CIVIL GENERAL | CO34: BON | CR34: RISARALDA | CS34: SUROCCIDENTE
A35: FECHA RECLAMACIÓN PREVIA A INDEMNIZACIONES | C35: TOMADOR | G35: Dda directa o llamamiento | BY35: ITP | CD35: 583.1 | CE35: 971 | CF35: 24 | CI35: EL CARMEN DE VIBORAL | CJ35: ANTIOQUIA | CK35: OCCIDENTE | CM35: EE | CN35: CORRIENTE DEBIL (MENSUAL) | CO35: OTH | CR35: CALDAS | CS35: SUROCCIDENTE
A36: POR QUE NO SE INDEMNIZO | C36: ASEGURADO | G36: Etapa procesal | BY36: ENFERMEDAD GRAVE | CD36: 971.1 | CE36: 1942 | CF36: 32 | CI36: CAROLINA | CJ36: ANTIOQUIA | CK36: OCCIDENTE | CM36: LI | CN36: LUCRO CESANTE INCENDIO | CO36: OTH
A37: CUANTO SE OFRECIO | C37: IDENTIFICACION ASEGURADO | G37: Orden (# NEON) | BY37: IPP | CD37: 1942.1 | CE37: 5000 | CF37: 36 | CI37: CAUCASIA | CJ37: ANTIOQUIA | CK37: OCCIDENTE | CM37: KR | CN37: AMIT ROTURA MAQUINARIA (ANUAL) | CO37: OTH
A38: FECHA AUDIENCIA PREJUDICIAL | C38: OBSERVACIONES / ESTADO ACTUAL DEL PROCESO | D38: 0 | G38: Fecha citación para Not | BY38: PENSION DE INVALIDEZ | CD38: 5000.1 | CE38: 10000 | CF38: 40 | CI38: CHIGORODO | CJ38: ANTIOQUIA | CK38: OCCIDENTE | CM38: TM | CN38: TERREMOTO INCENDIO-LI ANUAL | CO38: OTH
A39: POR QUE NO SE CONCILIO | C39: DEDUCIBLE | D39: 0 | G39: Fecha notificación Firma | BY39: NULIDAD DICTAMEN | CD39: 10000.1 | CE39: 10000000 | CF39: 52 | CI39: CISNEROS | CJ39: ANTIOQUIA | CK39: OCCIDENTE | CM39: MA | CN39: MANEJO PARTICULAR | CO39: OTH
A40: CUANTO SE OFRECIO | C40: COASEGURADORES | D40: 0 | G40: Reaseguro | BY40: PENSION DE SOBREVIVIENTE | CI40: COCORNA | CJ40: ANTIOQUIA | CK40: OCCIDENTE | CM40: TR | CN40: TRANSPORTE | CO40: OTH
A41: COMPAÑÍA VINCULADA | C41: COASEGURO - PARTICIPACIÓN LIBERTY | D41: 0 | G41: Departamento | H41: =IF(ISERROR(VLOOKUP(H30,CI:CJ,2,0)),"0",VLOOKUP(H30,CI:CJ,2,0)) -> 0 | BY41: CULPA PATRONAL | CI41: CONCEPCION | CJ41: ANTIOQUIA | CK41: OCCIDENTE | CM41: GDM | CN41: GRUPO DEUDORES MENSUAL | CO41: GRO
A42: ¿ES CORRECTA LA VINCULACION? | C42: REASEGURADOR (FACULTATIVO) | D42: 0 | G42: Producto | H42: =IF(ISERROR(VLOOKUP(H20,CM:CN,2,0)),"0",VLOOKUP(H20,CM:CN,2,0)) -> 0 | BY42: RC PATRONAL | CI42: CONCORDIA | CJ42: ANTIOQUIA | CK42: OCCIDENTE | CM42: GDM | CN42: GRUPO DEUDORES MENSUAL | CO42: GRO
C43: CORREDOR DE REASEGURO | D43: 0 | G43: Zona | H43: =IF(ISERROR(VLOOKUP(H30,CI:CK,3,0)),"0",VLOOKUP(H30,CI:CK,3,0)) -> 0 | BY43: VEHICULOS PROPIOS Y NO PROPIOS | CI43: COPACABANA | CJ43: ANTIOQUIA | CK43: OCCIDENTE | CM43: GDM | CN43: GRUPO DEUDORES MENSUAL | CO43: GRO
C44: TIPO DE MEDIDA CAUTELAR | D44: 0 | G44: instancia | BY44: CUMPLIMIENTO | CI44: DABEIBA | CJ44: ANTIOQUIA | CK44: OCCIDENTE | CM44: GDM | CN44: GRUPO DEUDORES MENSUAL | CO44: GRO
G45: Fecha envío al abogado | BY45: DAÑOS A PROPIEDADES ADYACENTES | CI45: DON MATIAS | CJ45: ANTIOQUIA | CK45: OCCIDENTE | CM45: GDM | CN45: GRUPO DEUDORES MENSUAL | CO45: GRO
CI46: EBEJICO | CJ46: ANTIOQUIA | CK46: OCCIDENTE | CM46: GDM | CN46: GRUPO DEUDORES MENSUAL | CO46: GRO
A47: OBSERVACIONES | AH47: OBSERVACIONES | CI47: EL BAGRE | CJ47: ANTIOQUIA | CK47: OCCIDENTE | CM47: GDM | CN47: GRUPO DEUDORES MENSUAL | CO47: GRO
CI48: ENTRERRIOS | CJ48: ANTIOQUIA | CK48: OCCIDENTE | CM48: GDM | CN48: GRUPO DEUDORES MENSUAL | CO48: GRO
CI49: ENVIGADO | CJ49: ANTIOQUIA | CK49: OCCIDENTE | CM49: GDM | CN49: GRUPO DEUDORES MENSUAL | CO49: GRO
A50: Unidad de Negocio | B50: Mes | C50: Año | D50: # NEON | E50: Tipo de proceso | F50: Jurisdicción (Civil, penal, administrativa o Superintendencia) | G50: Demanda Directa o Llamamiento en garantía | H50: Despacho | I50: Radicado | J50: Etapa | K50: Ciudad | L50: Departamento | M50: Zona | N50: Fecha de citación para notificación | O50: Fecha de notificación | P50: Ramo Técnico | Q50: Amparo(s) afectado | R50: # Póliza | S50: # Siniestro | T50: Demandante(s) | U50: Demandado(s) | V50: Fecha Siniestro | W50: Breve descripción de los hechos | X50: Descripción de las pretensiones | Y50: Pretensiones (cuantificadas) $ | Z50: Valor asegurado (para el amparo(s) afectado) $ | AA50: Valoración $ | AB50: Calificación inicial de la contingencia | AC50: Motivos de la calificación | AD50: Reserva de amparo a constituir $ | AE50: Reserva de honorarios a constituir $ | AF50: Reaseguro | CI50: FREDONIA | CJ50: ANTIOQUIA | CK50: OCCIDENTE | CM50: GDM | CN50: GRUPO DEUDORES MENSUAL | CO50: GRO
A51: =+H17 -> 0 | B51: =+H18 -> 0 | C51: =+H19 -> 0 | D51: =+H37 -> 0 | E51: =+H33 -> 0 | F51: =+H34 -> 0 | G51: =+H35 -> 0 | H51: =+H31 -> 0 | I51: =+H32 -> 0 | J51: =+H36 -> 0 | K51: =+H30 -> 0 | L51: =+H41 -> 0 | M51: =+H43 -> 0 | N51: =+H38 -> 00:00:00 | O51: =+H39 -> 00:00:00 | P51: =+H20 -> 0 | Q51: =+H27 -> 0 | R51: =+H21 -> 0 | S51: =+H16 -> 0 | T51: =+H23 -> 0 | U51: =+H24 -> 0 | V51: =+H25 -> 00:00:00 | W51: =+H26 -> 0 | X51: =+B13 -> 0 | Y51: =+B12 -> 874113607 | Z51: =+B14 -> 1800000000 | AA51: =+H29 -> 0 | AB51: =+B21 -> PROBABLE | AC51: =+H28 -> 0 | AD51: =+K48 -> 0 | AE51: =+L48 -> 0 | AF51: =+H40 -> 0 | CI51: FRONTINO | CJ51: ANTIOQUIA | CK51: OCCIDENTE | CM51: GDM | CN51: GRUPO DEUDORES MENSUAL | CO51: GRO
CI52: GIRALDO | CJ52: ANTIOQUIA | CK52: OCCIDENTE | CM52: GDM | CN52: GRUPO DEUDORES MENSUAL | CO52: GRO
A53: Reunión de Cierre semanal | B53: UNIDAD DE NEGOCIO | C53: RAMO | D53: CODIGO PRODUCTO LIBERTY | E53: NOMBRE PRODUCTO | F53: PÓLIZA N° | G53: # CERTIFICADO o REFERENCIA | H53: AMPARO | I53: MES SOLICITUD RESERVA | J53: AÑO SOLICITUD RESERVA | K53: ABOGADO INTERNO | L53: N° NEON | M53: FECHA RECLAMACIÓN PREVIA A INDEMNIZACIONES | N53: POR QUE NO SE INDEMNIZO | O53: CUANTO SE OFRECIO | P53: FECHA AUDIENCIA PREJUDICIAL | Q53: POR QUE NO SE CONCILIO | R53: CUANTO SE OFRECIO | S53: JUZGADO | T53: CIUDAD | U53: DEPARTAMENTO | V53: ZONA (Liberty) | W53: RADICADO | X53: CLASE DE PROCESO | Y53: CLASE DE PROCESO | Z53: JURISDICCIÓN | AA53: TIPO DE VINCULACION DE LIBERTY | AB53: INSTANCIA | AC53: ETAPA PROCESAL | AD53: ACTOR (DEMANDANTE) | AE53: COMPAÑÍA VINCULADA | AF53: DEMANDADO | AG53: MES DE VINCULACION | AH53: AÑO DE VINCULACION | AI53: FECHA DE RECEPCIÓN CITACION PARA NOTIFICACION | AJ53: FECHA DE NOTIFICACION | AK53: FECHA DE ENVIO AL ABOGADO DE LA ASIGNACION | AL53: FECHA DE VENCIMIENTO PARA CONTESTAR | AM53: FECHA DE SINIESTRO | AN53: HECHOS (Breve descripción) | AO53: PRETENSIONES (Descripción) | AP53: PRETENSIONES ($) | AQ53: VALOR ASEGURADO (Amparo afectado) | AR53: VALORACIÓN | AS53: MOTIVOS DE LA CONTINGENCIA | AT53: CLASE (CALIFICACIÓN INICIAL) | AU53: MODIFICACION CALIFICACION (AJUSTE) | AV53: FECHA | AW53: RAZON | AX53: RESERVA INDEMNIZATORIA | AY53: RESERVA DE HONORARIOS | AZ53: RESERVA DE HONORARIOS | BA53: RESERVA DE GASTOS | BB53: TOTAL RESERVA | BC53: N° DE SINIESTRO / CUENTA CONTABLE | BD53: TOMADOR | BE53: ASEGURADO | BF53: IDENTIFICACION ASEGURADO | BG53: ABOGADO | BH53: OFERTA DE HONORARIOS QUE APLICA | BI53: HONORARIOS PACTADOS (PESOS) | BJ53: OBSERVACIONES / ESTADO ACTUAL DEL PROCESO | BK53: CONTESTACION | BL53: ALEGATOS | BM53: SENTENCIA | BN53: DEDUCIBLE | BO53: COASEGURADORES | BP53: COASEGURO - PARTICIPACIÓN LIBERTY | BQ53: REASEGURADOR (FACULTATIVO) | BR53: CORREDOR DE REASEGURO | BS53: REASEGURO XL | BT53: TIPO DE MEDIDA CAUTELAR | BU53: FECHA DE TERMINACIÓN | BV53: CALIFICACIÓN FINAL DE LA CONTINGENCIA | BW53: MOTIVO DE TERMINACIÓN DEL PROCESO | BX53: MOTIVO DE TERMINACIÓN DEL PROCESO | CI53: GIRARDOTA | CJ53: ANTIOQUIA | CK53: OCCIDENTE | CM53: H1 | CN53: HEALTH EVOLUTION COLEC ANUAL | CO53: HEA
A54: =+H17 -> 0 | B54: =+I17 -> 0 | C54: =+I42 -> 0 | D54: =+I20 -> 0 | E54: =+I42 -> 0 | F54: =+I21 -> 0 | G54: =+I22 -> 0 | H54: =+I28 -> 0 | I54: =+I18 -> 0 | J54: =+I19 -> 0 | K54: =+I23 -> 0 | L54: =+I37 -> 0 | M54: =+C35 -> TOMADOR | N54: =+C36 -> ASEGURADO | O54: =+C37 -> IDENTIFICACION ASEGURADO | P54: =+C38 -> OBSERVACIONES / ESTADO ACTUAL DEL PROCESO | Q54: =+C39 -> DEDUCIBLE | R54: =+C40 -> COASEGURADORES | S54: =+I31 -> 0 | T54: =+I30 -> 0 | U54: =+I41 -> 0 | V54: =+I43 -> 0 | W54: =+I32 -> 0 | X54: =+I33 -> 0 | Y54: =+J33 -> 0 | Z54: =+J34 -> 0 | AA54: =+J35 -> 0 | AB54: =+J44 -> 0 | AC54: =+J36 -> 0 | AD54: =+J24 -> 0 | AE54: =+D41 -> 0 | AF54: =+I25 -> 0 | AG54: =+I18 -> 0 | AH54: =+I19 -> 0 | AI54: =+I38 -> 00:00:00 | AJ54: =+I39 -> 00:00:00 | AK54: =+I45 -> 00:00:00 | AL54: 0 | AM54: =+I26 -> 0 | AN54: =+I27 -> 0 | AO54: =+C13 -> 0 | AP54: =+C12 -> 315628084 | AQ54: =+C14 -> 0 | AR54: =+I29 -> 0 | AS54: =+D21 -> 0 | AT54: =+C21 -> 0 | AU54: 0 | AV54: 0 | AW54: 0 | AX54: =+L48 -> 0 | AY54: =+M48 -> 0 | AZ54: =+N48 -> 0 | BA54: =+O48 -> 0 | BB54: =+P48 -> 0 | BC54: =+J16 -> 0 | BD54: =+F35 -> 0 | BE54: =+F36 -> 0 | BF54: =+F37 -> 0 | BG54: =+J23 -> 0 | BH54: =+D2 -> 0 | BI54: =+N48 -> 0 | BJ54: 0 | BK54: =+I13 -> 0 | BL54: =+I14 -> 0 | BM54: =+I15 -> 0 | BN54: =+F39 -> 0 | BO54: =+F40 -> 0 | BP54: =+F41 -> 0 | BQ54: =+F42 -> 0 | BR54: =+F43 -> 0 | BS54: =+F44 -> 0 | BT54: =+G44 -> instancia | BU54: 0 | BV54: 0 | BW54: 0 | BX54: 0 | CI54: GOMEZ PLATA | CJ54: ANTIOQUIA | CK54: OCCIDENTE | CM54: S2 | CN54: TOTAL HELP ASISTENCIA EN VIAJE | CO54: HEI
CI55: GRANADA | CJ55: ANTIOQUIA | CK55: OCCIDENTE | CM55: E4 | CN55: EVENTOS CRITICOS INDIV MENSUAL | CO55: HEI
CI56: GUADALUPE | CJ56: ANTIOQUIA | CK56: OCCIDENTE | CM56: Z5 | CN56: TOTAL HELP MD COLEC ANUAL | CO56: HEA
CI57: GUARNE | CJ57: ANTIOQUIA | CK57: OCCIDENTE | CM57: C4 | CN57: HELP PLUS COLECTIVO MENSUAL | CO57: HEA
A58: Reunión de Cierre semanal | B58: UNIDAD DE NEGOCIO | C58: RAMO | D58: CODIGO PRODUCTO LIBERTY | E58: NOMBRE PRODUCTO | F58: PÓLIZA N° | G58: # CERTIFICADO / REF / SUC | H58: AMPARO | I58: MES SOLICITUD RESERVA | J58: AÑO SOLICITUD RESERVA | K58: ABOGADO INTERNO | L58: N° NEON | M58: FECHA RECLAMACIÓN PREVIA A INDEMNIZACIONES | N58: POR QUE NO SE INDEMNIZO | O58: CUANTO SE OFRECIO | P58: FECHA AUDIENCIA PREJUDICIAL | Q58: POR QUE NO SE CONCILIO | R58: CUANTO SE OFRECIO | S58: JUZGADO | T58: CIUDAD | U58: DEPARTAMENTO | V58: ZONA (Liberty) | W58: RADICADO | X58: CLASE DE PROCESO (#) | Y58: CLASE DE PROCESO | Z58: JURISDICCIÓN | AA58: TIPO DE VINCULACION DE LIBERTY | AB58: INSTANCIA | AC58: ETAPA PROCESAL | AD58: ACTOR (DEMANDANTE) | AE58: COMPAÑÍA VINCULADA | AF58: DEMANDADO | AG58: MES DE VINCULACION | AH58: AÑO DE VINCULACION | AI58: FECHA DE RECEPCIÓN CITACION PARA NOTIFICACION | AJ58: FECHA DE NOTIFICACION | AK58: FECHA DE SINIESTRO | AL58: RESUMEN DE LA CONTINGENCIA | AM58: PRETENSIONES (Descripción) | AN58: PRETENSIONES ($) | AO58: VALOR ASEGURADO (Amparo afectado) | AP58: VALORACION | AQ58: CLASIFICACION MOTIVOS | AR58: CALIFICACION CLASE (INICIAL) | AS58: MODIFICACION CALIFICACION (AJUSTE) | AT58: FECHA MODIFICACION CALIFICACION | AU58: RAZON MODIFICACION CALIFICACION | AV58: RESERVA INDEMNIZATORIA (TECNICA) | AW58: RESERVA INDEMNIZATORIA (CONTABLE POR EFECTO DE COASEGURO) | AX58: RESERVA DE HONORARIOS PENDIENTES | AY58: RESERVA DE GASTOS | AZ58: TOTAL RESERVA | BA58: N° DE SINIESTRO / CUENTA CONTABLE | BB58: TOMADOR | BC58: ASEGURADO | BD58: ABOGADO (EXTERNO) | BE58: OFERTA DE HONORARIOS QUE APLICA | BF58: HONORARIOS PACTADOS (PESOS) | BG58: OBSERVACIONES / ESTADO ACTUAL DEL PROCESO | BH58: CONTESTACION | BI58: ALEGATOS | BJ58: SENTENCIA | BK58: DEDUCIBLE | BL58: COASEGURADORES | BM58: COASEGURO - PARTICIPACIÓN LIBERTY | BN58: TIPO DE COASEGURO (CEDIDO/ACEPTADO) | BO58: REASEGURADOR Y CONTRATO (FACULTATIVO) | BP58: CORREDOR DE REASEGURO | BQ58: REASEGURO XL | BR58: TIPO DE MEDIDA CAUTELAR | BS58: FECHA DE TERMINACIÓN | BT58: CALIFICACIÓN FINAL DE LA CONTINGENCIA | BU58: MOTIVO DE TERMINACIÓN DEL PROCESO | BV58: RESERVA INICIAL | BW58: RESERVA FINAL | BX58: VALOR PAGADO | CI58: GUATAPE | CJ58: ANTIOQUIA | CK58: OCCIDENTE | CM58: GDM | CN58: GRUPO DEUDORES MENSUAL | CO58: GRO
CI59: HELICONIA | CJ59: ANTIOQUIA | CK59: OCCIDENTE | CM59: AT | CN59: TASA UNICA TASA ANUAL | CO59: AUC
CI60: HISPANIA | CJ60: ANTIOQUIA | CK60: OCCIDENTE | CM60: IN | CN60: INCENDIO | CO60: OTH
CI61: ITAGUI | CJ61: ANTIOQUIA | CK61: OCCIDENTE | CM61: KI | CN61: AMIT INCENDIO ANUAL | CO61: OTH
CI62: ITUANGO | CJ62: ANTIOQUIA | CK62: OCCIDENTE | CM62: AA | CN62: ACCIDENTES PERSONALES | CO62: GRO
CI63: JARDIN | CJ63: ANTIOQUIA | CK63: OCCIDENTE | CM63: 398 | CN63: EXEQUIAL ALIANZA ( ANUAL ) | CO63: GRO
CI64: JERICO | CJ64: ANTIOQUIA | CK64: OCCIDENTE | CM64: KB | CN64: AMIT PROPIED BIEN COMUN ANUAL | CO64: OTH
CI65: LA CEJA | CJ65: ANTIOQUIA | CK65: OCCIDENTE | CM65: TB | CN65: TERREMOTO DE BIENES COMUNES | CO65: OTH
CI66: LA ESTRELLA | CJ66: ANTIOQUIA | CK66: OCCIDENTE | CM66: LB | CN66: RESPONSABILIDAD CIVIL ANUAL | CO66: BON
CI67: LA PINTADA | CJ67: ANTIOQUIA | CK67: OCCIDENTE | CM67: VEP | CN67: LIBERTY VIDA EFICAZ $ MENSUAL | CO67: MAT
CI68: LA UNION | CJ68: ANTIOQUIA | CK68: OCCIDENTE | CM68: GM1 | CN68: GRUPO VIDA TRIMESTRAL | CO68: GRO
CI69: LIBORINA | CJ69: ANTIOQUIA | CK69: OCCIDENTE | CM69: GM | CN69: GRUPO VIDA MENSUAL | CO69: GRO
CI70: MACEO | CJ70: ANTIOQUIA | CK70: OCCIDENTE | CM70: SE | CN70: TOTAL HELP ESENCIAL SEMESTRAL | CO70: HEI
CI71: MARINILLA | CJ71: ANTIOQUIA | CK71: OCCIDENTE | CM71: MT | CN71: MOTOCICLETAS ANUAL | CO71: AUP
CI72: MONTEBELLO | CJ72: ANTIOQUIA | CK72: OCCIDENTE | CM72: IF | CN72: INTEGRAL FAMILIAR | CO72: OTH
CI73: MURINDO | CJ73: ANTIOQUIA | CK73: OCCIDENTE | CM73: ST | CN73: SUSTRACCION | CO73: OTH
CI74: MUTATA | CJ74: ANTIOQUIA | CK74: OCCIDENTE | CM74: EE | CN74: EQUIPOS ELECTRICOS Y ELECTRON | CO74: OTH
CI75: NARIÑO | CJ75: ANTIOQUIA | CK75: OCCIDENTE | CM75: RC | CN75: RESPONSABILIDAD CIVIL GENERAL | CO75: BON
CI76: NECOCLI | CJ76: ANTIOQUIA | CK76: OCCIDENTE | CM76: TI | CN76: TERREMOTO X INTEGRAL | CO76: OTH
CI77: NECHI | CJ77: ANTIOQUIA | CK77: OCCIDENTE | CM77: LV | CN77: LATINVIDA | CO77: MAT
CI78: OLAYA | CJ78: ANTIOQUIA | CK78: OCCIDENTE | CM78: LV | CN78: LATINVIDA | CO78: MAT
CI79: PEÐOL | CJ79: ANTIOQUIA | CK79: OCCIDENTE | CM79: BC | CN79: SEG PROPIEDAD BIEN COMUN | CO79: OTH
CI80: PEQUE | CJ80: ANTIOQUIA | CK80: OCCIDENTE | CM80: GDM | CN80: GRUPO DEUDORES MENSUAL | CO80: GRO
CI81: PUEBLORRICO | CJ81: ANTIOQUIA | CK81: OCCIDENTE | CM81: AA | CN81: ACCIDENTES PERSONALES | CO81: GRO
CI82: PUERTO BERRIO | CJ82: ANTIOQUIA | CK82: OCCIDENTE | CM82: CA | CN82: CAUCION JUDICIAL | CO82: BON
CI83: PUERTO NARE | CJ83: ANTIOQUIA | CK83: OCCIDENTE | CM83: CAN | CN83: LIBER SALUD CANCE ANU COLEC | CO83: HEA
CI84: PUERTO TRIUNFO | CJ84: ANTIOQUIA | CK84: OCCIDENTE | CM84: IF | CN84: INTEGRAL FAMILIAR | CO84: OTH
CI85: REMEDIOS | CJ85: ANTIOQUIA | CK85: OCCIDENTE | CM85: MW | CN85: MOTOS COLECTIVO ANUAL | CO85: AUP
CI86: RETIRO | CJ86: ANTIOQUIA | CK86: OCCIDENTE | CM86: ST | CN86: SUSTRACCION | CO86: OTH
CI87: RIONEGRO | CJ87: ANTIOQUIA | CK87: OCCIDENTE | CM87: EE | CN87: EQUIPOS ELECTRICOS Y ELECTRON | CO87: OTH
CI88: SABANALARGA | CJ88: ANTIOQUIA | CK88: OCCIDENTE | CM88: TI | CN88: TERREMOTO X INTEGRAL | CO88: OTH
CI89: SABANETA | CJ89: ANTIOQUIA | CK89: OCCIDENTE | CM89: SE | CN89: TOTAL HELP ESENCIAL IND ANUAL | CO89: HEI
CI90: SALGAR | CJ90: ANTIOQUIA | CK90: OCCIDENTE | CM90: LB | CN90: RESPONSABILIDAD CIVIL ANUAL | CO90: BON
CI91: SAN ANDRES DE CUERQUIA | CJ91: ANTIOQUIA | CK91: OCCIDENTE | CM91: Z2 | CN91: HELP PLUS INDIVIDUAL ANUAL | CO91: HEI
CI92: SAN CARLOS | CJ92: ANTIOQUIA | CK92: OCCIDENTE | CM92: Z2 | CN92: HELP PLUS INDIVIDUAL ANUAL | CO92: HEI
CI93: SAN FRANCISCO | CJ93: ANTIOQUIA | CK93: OCCIDENTE | CM93: 99 | CN93: ADN JOMESCO LTDA
CI94: SAN JERONIMO | CJ94: ANTIOQUIA | CK94: OCCIDENTE | CM94: 99 | CN94: ADN DELIMA MARSH ORGANIZ CALI
CI95: SAN JOSE DE LA MONTAÑA | CJ95: ANTIOQUIA | CK95: OCCIDENTE | CM95: TT | CN95: TASA TAXIS | CO95: AUC
CI96: SAN JUAN DE URABA | CJ96: ANTIOQUIA | CK96: OCCIDENTE | CM96: TT | CN96: TASA TAXIS | CO96: AUC
CI97: SAN LUIS | CJ97: ANTIOQUIA | CK97: OCCIDENTE | CM97: AU | CN97: AUTOMOVILES | CO97: AUP
CI98: SAN PEDRO | CJ98: ANTIOQUIA | CK98: OCCIDENTE | CM98: AU | CN98: AUTOMOVILES | CO98: AUP
CI99: SAN PEDRO DE URABA | CJ99: ANTIOQUIA | CK99: OCCIDENTE | CM99: RM | CN99: ROTURA DE MAQUINARIA | CO99: OTH
CI100: SAN RAFAEL | CJ100: ANTIOQUIA | CK100: OCCIDENTE | CM100: 99 | CN100: SBU FIN PREST INTM GTIA PERS
CI101: SAN ROQUE | CJ101: ANTIOQUIA | CK101: OCCIDENTE | CM101: CU | CN101: CUMPLIMIENTO OFICIAL | CO101: BON
CI102: SAN VICENTE | CJ102: ANTIOQUIA | CK102: OCCIDENTE | CM102: 99 | CN102: ADN AGENCIA DE SEG MASAI LTDA
CI103: SANTA BARBARA | CJ103: ANTIOQUIA | CK103: OCCIDENTE | CM103: RC | CN103: RESPONSABILIDAD CIVIL GENERAL | CO103: BON
CI104: SANTA ROSA DE OSOS | CJ104: ANTIOQUIA | CK104: OCCIDENTE | CM104: 411 | CN104: HOGAR DULCE HOGAR EMPRE ANUAL | CO104: OTH
CI105: SANTO DOMINGO | CJ105: ANTIOQUIA | CK105: OCCIDENTE | CM105: H1 | CN105: HEALTH EVOLUTION COLEC ANUAL | CO105: HEA
CI106: EL SANTUARIO | CJ106: ANTIOQUIA | CK106: OCCIDENTE | CM106: H5 | CN106: HEALTH EVOLUTION INDIV TRIM | CO106: HEI
CI107: SEGOVIA | CJ107: ANTIOQUIA | CK107: OCCIDENTE | CM107: H5 | CN107: HEALTH EVOLUTION INDIV TRIM | CO107: HEI
CI108: SONSON | CJ108: ANTIOQUIA | CK108: OCCIDENTE | CM108: 99 | CN108: ADN MARIA MILAGROS HORRILLO
CI109: SOPETRAN | CJ109: ANTIOQUIA | CK109: OCCIDENTE | CM109: MT | CN109: MOTOCICLETAS ANUAL | CO109: AUP
CI110: TAMESIS | CJ110: ANTIOQUIA | CK110: OCCIDENTE | CM110: H4 | CN110: HEALTH EVOLUTION COLEC MENSUAL | CO110: HEA
CI111: TARAZA | CJ111: ANTIOQUIA | CK111: OCCIDENTE | CM111: CCP | CN111: COMP CIRUGIA EST COL ANUAL | CO111: HEA
CI112: TARSO | CJ112: ANTIOQUIA | CK112: OCCIDENTE | CM112: AO | CN112: SOAT | CO112: SOA
CI113: TITIRIBI | CJ113: ANTIOQUIA | CK113: OCCIDENTE | CM113: TP | CN113: VEHICULOS PESADOS ANUAL | CO113: AUC
CI114: TOLEDO | CJ114: ANTIOQUIA | CK114: OCCIDENTE | CM114: CU | CN114: CUMPLIMIENTO OFICIAL | CO114: BON
CI115: TURBO | CJ115: ANTIOQUIA | CK115: OCCIDENTE | CM115: AU | CN115: AUTOMOVILES | CO115: AUP
CI116: URAMITA | CJ116: ANTIOQUIA | CK116: OCCIDENTE | CM116: PY | CN116: PYME | CO116: OTH
CI117: URRAO | CJ117: ANTIOQUIA | CK117: OCCIDENTE | CM117: Z2 | CN117: HELP PLUS INDIVIDUAL ANUAL | CO117: HEI
CI118: VALDIVIA | CJ118: ANTIOQUIA | CK118: OCCIDENTE | CM118: AA | CN118: ACCIDENTES PERSONALES | CO118: GRO
CI119: VALPARAISO | CJ119: ANTIOQUIA | CK119: OCCIDENTE | CM119: U63 | CN119: ACCIDENTES ESCOLARES | CO119: GRO
CI120: VEGACHI | CJ120: ANTIOQUIA | CK120: OCCIDENTE | CM120: VI | CN120: VIDA INDIVIDUAL | CO120: MAT
CI121: VENECIA | CJ121: ANTIOQUIA | CK121: OCCIDENTE | CM121: CA | CN121: CAUCION JUDICIAL | CO121: BON
CI122: VIGIA DEL FUERTE | CJ122: ANTIOQUIA | CK122: OCCIDENTE | CM122: TP | CN122: VEHICULOS PESADOS ANUAL | CO122: AUC
CI123: YALI | CJ123: ANTIOQUIA | CK123: OCCIDENTE | CM123: MW | CN123: MOTOS COLECTIVO MENSUAL | CO123: AUP
CI124: YARUMAL | CJ124: ANTIOQUIA | CK124: OCCIDENTE | CM124: EM | CN124: EQUIPO Y MAQUINARIA ANUAL | CO124: OTH
CI125: YOLOMBO | CJ125: ANTIOQUIA | CK125: OCCIDENTE | CM125: GDM | CN125: GRUPO DEUDORES MENSUAL | CO125: GRO
CI126: YONDO | CJ126: ANTIOQUIA | CK126: OCCIDENTE | CM126: AA | CN126: ACCIDENTES PERSONALES | CO126: GRO
CI127: ZARAGOZA | CJ127: ANTIOQUIA | CK127: OCCIDENTE | CM127: IT | CN127: INTERCOR | CO127: HEA
CI128: BARRANQUILLA | CJ128: ATLANTICO | CK128: NORTE II | CM128: Z4 | CN128: TOTAL HELP MD INDIV MENSUAL | CO128: HEI
CI129: BARANOA | CJ129: ATLANTICO | CK129: NORTE II | CM129: 17 | CN129: MONTAJE RIESGOS IND | CO129: OTH
CI130: CAMPO DE LA CRUZ | CJ130: ATLANTICO | CK130: NORTE II | CM130: IT | CN130: INTERCOR | CO130: HEA
CI131: CANDELARIA | CJ131: ATLANTICO | CK131: NORTE II | CM131: 59 | CN131: BENEFICIO DIARIO HOSPITAL. | CO131: HEA
CI132: GALAPA | CJ132: ATLANTICO | CK132: NORTE II | CM132: 17 | CN132: MONTAJE RIESGOS IND | CO132: OTH
CI133: JUAN DE ACOSTA | CJ133: ATLANTICO | CK133: NORTE II | CM133: 17 | CN133: MONTAJE RIESGOS IND | CO133: OTH
CI134: LURUACO | CJ134: ATLANTICO | CK134: NORTE II | CM134: 17 | CN134: MONTAJE RIESGOS IND | CO134: OTH
CI135: MALAMBO | CJ135: ATLANTICO | CK135: NORTE II | CM135: SM | CN135: SEMOVIENTES | CO135: OTH
CI136: MANATI | CJ136: ATLANTICO | CK136: NORTE II | CM136: 17 | CN136: MONTAJE RIESGOS IND | CO136: OTH
CI137: PALMAR DE VARELA | CJ137: ATLANTICO | CK137: NORTE II | CM137: EX | CN137: EXEQUIAS | CO137: GRO
CI138: PIOJO | CJ138: ATLANTICO | CK138: NORTE II | CM138: LI | CN138: LUCRO CESANTE INCENDIO | CO138: OTH
CI139: POLONUEVO | CJ139: ATLANTICO | CK139: NORTE II | CM139: VD | CN139: VIDRIOS | CO139: OTH
CI140: PONEDERA | CJ140: ATLANTICO | CK140: NORTE II | CM140: MA | CN140: MANEJO PARTICULAR | CO140: OTH
CI141: PUERTO COLOMBIA | CJ141: ATLANTICO | CK141: NORTE II | CM141: CA | CN141: CAUCION JUDICIAL | CO141: BON
CI142: REPELON | CJ142: ATLANTICO | CK142: NORTE II | CM142: RM | CN142: ROTURA DE MAQUINARIA | CO142: OTH
CI143: SABANAGRANDE | CJ143: ATLANTICO | CK143: NORTE II | CM143: PY | CN143: PYME | CO143: OTH
CI144: SABANALARGA | CJ144: ATLANTICO | CK144: NORTE II | CM144: EM | CN144: EQUIPO Y MAQUINARIA ANUAL | CO144: OTH
CI145: SANTA LUCIA | CJ145: ATLANTICO | CK145: NORTE II | CM145: 17 | CN145: MONTAJE RIESGOS IND | CO145: OTH
CI146: SANTO TOMAS | CJ146: ATLANTICO | CK146: NORTE II | CM146: MG | CN146: GLOBAL BANCARIO | CO146: OTH
CI147: SOLEDAD | CJ147: ATLANTICO | CK147: NORTE II | CM147: SM | CN147: SEMOVIENTES | CO147: OTH
CI148: SUAN | CJ148: ATLANTICO | CK148: NORTE II | CM148: TC | CN148: TODO RIESGO CONTRATISTAS | CO148: OTH
CI149: TUBARA | CJ149: ATLANTICO | CK149: NORTE II | CM149: TG | CN149: TRANSPORTES NEGOCIOS ESPECIAL | CO149: OTH
CI150: USIACURI | CJ150: ATLANTICO | CK150: NORTE II | CM150: 59 | CN150: BENEFICIO DIARIO HOSPITAL. | CO150: HEA
CI151: BOGOTA | CJ151: BOGOTA | CK151: BOGOTA | CM151: U63 | CN151: ACCIDENTES ESCOLARES | CO151: GRO
CI152: CARTAGENA | CJ152: BOLIVAR | CK152: NORTE II | CM152: PH | CN152: HUESPEDES HOTELES | CO152: GRO
CI153: ACHI | CJ153: BOLIVAR | CK153: NORTE II | CM153: EC | CN153: TOTAL HELP IND 96 | CO153: HEI
CI154: ALTOS DEL ROSARIO | CJ154: BOLIVAR | CK154: NORTE II | CM154: TP | CN154: VEHICULOS PESADOS MENSUAL | CO154: AUC
CI155: ARENAL | CJ155: BOLIVAR | CK155: NORTE II | CM155: 207 | CN155: AMIT TERREMOT DE MAQUINARIA | CO155: OTH
CI156: ARJONA | CJ156: BOLIVAR | CK156: NORTE II | CM156: MT | CN156: MOTOCICLETAS ANUAL | CO156: AUP
CI157: ARROYOHONDO | CJ157: BOLIVAR | CK157: NORTE II | CM157: U79 | CN157: VIDA GRUPO VIVALA VIDA MENSUAL | CO157: GRO
CI158: BARRANCO DE LOBA | CJ158: BOLIVAR | CK158: NORTE II | CM158: 61 | CN158: A. T. E. P. | CO158: WOR
CI159: CALAMAR | CJ159: BOLIVAR | CK159: NORTE II | CM159: LV | CN159: LATINVIDA | CO159: MAT
CI160: CANTAGALLO | CJ160: BOLIVAR | CK160: NORTE II | CM160: EX | CN160: EXEQUIAS | CO160: GRO
CI161: CICUCO | CJ161: BOLIVAR | CK161: NORTE II | CM161: HD | CN161: HOSPITALIZACION DINNERS | CO161: HEA
CI162: CORDOBA | CJ162: BOLIVAR | CK162: NORTE II | CM162: ADU | CN162: ASIS MED DOMI CON URG COL ANUA | CO162: HEA
CI163: CLEMENCIA | CJ163: BOLIVAR | CK163: NORTE II | CM163: EX | CN163: EXEQUIAS | CO163: GRO
CI164: EL CARMEN DE BOLIVAR | CJ164: BOLIVAR | CK164: NORTE II | CM164: Z4 | CN164: TOTAL HELP MD INDIV MENSUAL | CO164: HEI
CI165: EL GUAMO | CJ165: BOLIVAR | CK165: NORTE II | CM165: IT | CN165: INTERCOR | CO165: HEA
CI166: EL PEÑON | CJ166: BOLIVAR | CK166: NORTE II | CM166: Z4 | CN166: TOTAL HELP MD INDIV MENSUAL | CO166: HEI
CI167: HATILLO DE LOBA | CJ167: BOLIVAR | CK167: NORTE II | CM167: 731 | CN167: INCENDIO DEUDORES SEMESTRAL | CO167: OTH
CI168: MAGANGUE | CJ168: BOLIVAR | CK168: NORTE II | CM168: EX | CN168: EXEQUIAS | CO168: GRO
CI169: MAHATES | CJ169: BOLIVAR | CK169: NORTE II | CM169: TP | CN169: VEHICULOS PESADOS MENSUAL | CO169: AUC
CI170: MARGARITA | CJ170: BOLIVAR | CK170: NORTE II | CM170: 239 | CN170: MOTOCICLETAS ANUAL | CO170: AUP
CI171: MARIA LA BAJA | CJ171: BOLIVAR | CK171: NORTE II | CM171: G24 | CN171: EXEQUIAL GAVIRIA MENS COLECT | CO171: GRO
CI172: MONTECRISTO | CJ172: BOLIVAR | CK172: NORTE II | CM172: CV | CN172: COLECTIVO | CO172: GRO
CI173: MOMPOS | CJ173: BOLIVAR | CK173: NORTE II | CM173: AX | CN173: POLIZA ECONOMICA MY CAR | CO173: AUP
CI174: NOROSI | CJ174: BOLIVAR | CK174: NORTE II | CM174: ADU | CN174: ASIS MED DOMI CON URG COL MENS | CO174: HEA
CI175: MORALES | CJ175: BOLIVAR | CK175: NORTE II | CM175: GD | CN175: GRUPO VIDA ANUAL | CO175: GRO
CI176: PINILLOS | CJ176: BOLIVAR | CK176: NORTE II | CM176: AA | CN176: ACCIDENTES PERSONALES | CO176: GRO
CI177: REGIDOR | CJ177: BOLIVAR | CK177: NORTE II | CM177: HD | CN177: HOSPITALIZACION DINNERS | CO177: HEA
CI178: RIO VIEJO | CJ178: BOLIVAR | CK178: NORTE II | CM178: EX | CN178: EXEQUIAS | CO178: GRO
CI179: SAN CRISTOBAL | CJ179: BOLIVAR | CK179: NORTE II | CM179: E7 | CN179: EVENTOS CRITICOS INDIV TRIM | CO179: HEI
CI180: SAN ESTANISLAO | CJ180: BOLIVAR | CK180: NORTE II | CM180: Z4 | CN180: TOTAL HELP MD INDIV MENSUAL | CO180: HEI
CI181: SAN FERNANDO | CJ181: BOLIVAR | CK181: NORTE II | CM181: TP | CN181: VEHICULOS PESADOS MENSUAL | CO181: AUC
CI182: SAN JACINTO | CJ182: BOLIVAR | CK182: NORTE II | CM182: MT | CN182: MOTOCICLETAS ANUAL | CO182: AUP
CI183: SAN JACINTO DEL CAUCA | CJ183: BOLIVAR | CK183: NORTE II | CM183: EX | CN183: EXEQUIAS | CO183: GRO
CI184: SAN JUAN NEPOMUCENO | CJ184: BOLIVAR | CK184: NORTE II | CM184: HD | CN184: HOSPITALIZACION DINNERS | CO184: HEA
CI185: SAN MARTIN DE LOBA | CJ185: BOLIVAR | CK185: NORTE II | CM185: GM | CN185: GRUPO VIDA MENSUAL | CO185: GRO
CI186: SAN PABLO | CJ186: BOLIVAR | CK186: NORTE II | CM186: GM | CN186: GRUPO VIDA MENSUAL | CO186: GRO
CI187: SANTA CATALINA | CJ187: BOLIVAR | CK187: NORTE II | CM187: E6 | CN187: EVENTOS CRITICOS COLEC MENSUAL | CO187: HEA
CI188: SANTA ROSA | CJ188: BOLIVAR | CK188: NORTE II | CM188: 99 | CN188: CASA LIBERTY 2 | CO188: WOR
CI189: SANTA ROSA DEL SUR | CJ189: BOLIVAR | CK189: NORTE II | CM189: CV | CN189: COLECTIVO | CO189: GRO
CI190: SIMITI | CJ190: BOLIVAR | CK190: NORTE II | CM190: IN | CN190: INCENDIO | CO190: OTH
CI191: SOPLAVIENTO | CJ191: BOLIVAR | CK191: NORTE II | CM191: VEP | CN191: LIBERTY VIDA EFICAZ US ANUAL | CO191: MAT
CI192: TALAIGUA NUEVO | CJ192: BOLIVAR | CK192: NORTE II | CM192: 713 | CN192: HOGAR DULCE HOGAR MENSUAL | CO192: OTH
CI193: TIQUISIO | CJ193: BOLIVAR | CK193: NORTE II | CM193: GDM | CN193: GRUPO DEUDORES MENSUAL | CO193: GRO
CI194: TURBACO | CJ194: BOLIVAR | CK194: NORTE II | CM194: SE | CN194: TOTAL HELP ESENCIAL TRIMESTRAL | CO194: HEI
CI195: TURBANA | CJ195: BOLIVAR | CK195: NORTE II | CM195: AX | CN195: POLIZA ECONOMICA MY CAR | CO195: AUP
CI196: VILLANUEVA | CJ196: BOLIVAR | CK196: NORTE II | CM196: U44 | CN196: TERREMOTO PYMES | CO196: OTH
CI197: ZAMBRANO | CJ197: BOLIVAR | CK197: NORTE II | CM197: KY | CN197: AMIT PYME ANUAL | CO197: OTH
CI198: TUNJA | CJ198: BOYACA | CK198: CENTRO | CM198: AA | CN198: ACCIDENTES PERSONALES | CO198: GRO
CI199: ALMEIDA | CJ199: BOYACA | CK199: CENTRO | CM199: GDM | CN199: GRUPO DEUDORES MENSUAL | CO199: GRO
CI200: AQUITANIA | CJ200: BOYACA | CK200: CENTRO | CM200: E6 | CN200: EVENTOS CRITICOS COLEC MENSUAL | CO200: HEA
... 362 more rows

Sheet LUCRO CESANTE X MUERTE
A1: 2020-11-04 | B1: H/M | C1: F. NACIMIENTO | D1: EDAD (AÑOS) | E1: HASTA (AÑOS) | F1: MESES DIF | G1: MESES LIQ | H1: SALARIO LIQ | J1: LC CONSOLIDADO
A2: FALLECIDO, CAUSANTE, OCCISO | B2: Mujer | C2: 1983-03-02 | D2: =IF(C2="",0,ROUND(($A$1-C2)/365,0)) -> 38 | E2: =+IF(B2="",0,IF(B2="Hombre",VLOOKUP(D2,'TABLA DE MORTALIDAD'!A:B,2,0)+D2,VLOOKUP(D2,'TABLA DE MORTALIDAD'!C:D,2,0)+D2)) -> 85.6 | F2: =+(E2-D2)*12 -> 571.2 | G2: =+(TODAY()-A1)/30 -> 49.2 | H2: =+B17 -> 1445504.197
A3: CONYUGÉ | B3: Hombre | C3: 1983-11-09 | D3: =IF(C3="",0,ROUND(($A$1-C3)/365,0)) -> 37 | E3: =+IF(B3="",0,IF(B3="Hombre",VLOOKUP(D3,'TABLA DE MORTALIDAD'!A:B,2,0)+D3,VLOOKUP(D3,'TABLA DE MORTALIDAD'!C:D,2,0)+D3)) -> 80.7 | F3: =+(E3-D3)*12 -> 524.4 | G3: =+(TODAY()-$A$1)/30 -> 49.2 | H3: =H2 -> 1445504.197
A4: HIJO (A) 2 | B4: Hombre | D4: 0 | E4: 25 | F4: =+(E4-D4)*12 -> 300 | G4: =+(TODAY()-$A$1)/30 -> 49.2
A5: HIJO (A) 3 | D5: 0 | E5: =+IF(B5="",0,IF(B5="Hombre",VLOOKUP(D5,'TABLA DE MORTALIDAD'!A:B,2,0)+D5,VLOOKUP(D5,'TABLA DE MORTALIDAD'!C:D,2,0)+D5)) -> 0 | F5: =+(E5-D5)*12 -> 0 | G5: =+(TODAY()-$A$1)/30 -> 49.2
A6: HIJO (A) 4 | D6: 0 | E6: =+IF(B6="",0,IF(B6="Hombre",VLOOKUP(D6,'TABLA DE MORTALIDAD'!A:B,2,0)+D6,VLOOKUP(D6,'TABLA DE MORTALIDAD'!C:D,2,0)+D6)) -> 0 | F6: =+(E6-D6)*12 -> 0 | G6: =+(TODAY()-$A$1)/30 -> 49.2 | J6: LC FUTURO
A7: HIJO (A) 5 | D7: 0 | E7: =+IF(B7="",0,IF(B7="Hombre",VLOOKUP(D7,'TABLA DE MORTALIDAD'!A:B,2,0)+D7,VLOOKUP(D7,'TABLA DE MORTALIDAD'!C:D,2,0)+D7)) -> 0 | F7: 0 | G7: =+(TODAY()-$A$1)/30 -> 49.2
A8: HIJO (A) 6 | D8: 0 | E8: =+IF(B8="",0,IF(B8="Hombre",VLOOKUP(D8,'TABLA DE MORTALIDAD'!A:B,2,0)+D8,VLOOKUP(D8,'TABLA DE MORTALIDAD'!C:D,2,0)+D8)) -> 0 | F8: 0 | G8: 49.2
A10: FECHA DE LIQUIDACIÓN | B10: 2024-08-01
A11: SALARIO BASE DEL FALLECIDO | B11: 1127722
A12: RENTA ACTUALIZADA | B12: =B11*(E13/E12) -> 1541871.143 | D12: IPC INICIAL | E12: =VLOOKUP(F12,DANE!A:W,H12,0) -> 105.08 | F12: =MONTH(A1) -> 11 | G12: =YEAR(A1) -> 2020 | H12: =RIGHT(G12,2) -> 20
A13: INCREMENTO PRESTACIONAL (25%) | B13: =+B12*25% -> 385467.7858 | C13: 0.25 | D13: IPC FINAL | E13: =IF(NOT(VLOOKUP(F13,DANE!A:X,H13,0)=0),VLOOKUP(F13,DANE!A:AF,'LUCRO CESANTE X MUERTE'!H13,0),VLOOKUP(F13-1,DANE!A:AE,'LUCRO CESANTE X MUERTE'!H13,0)) -> 143.67 | F13: =MONTH(B10) -> 8 | G13: =YEAR(B10) -> 2024 | H13: =RIGHT(G13,2) -> 24
A14: SALARIO BASE CON PRESTACIONES | B14: =B12+B13 -> 1927338.929
A15: PORCENTAJE DESTINADO A MANUTENCION | B15: 0.25
A16: VALOR EN PESOS | B16: =+B14*B15 -> 481834.7323
A17: SALARIO FINAL | B17: =+B14-B16 -> 1445504.197
A18: i = INTERES | B18: 0.004867
A20: LUCRO CESANTE CONSOLIDADO | B20: =+A3 -> CONYUGÉ | C20: =+A4 -> HIJO (A) 2 | D20: =+A5 -> HIJO (A) 3 | E20: =+A6 -> HIJO (A) 4 | F20: =+A7 -> HIJO (A) 5 | G20: =+A8 -> HIJO (A) 6
A21: A LA FECHA DE LIQUIDACION | B21: =H3*(((POWER(1+$B$18,G3)-1)/$B$18)) -> 80136982.19 | C21: =H4*(((POWER(1+$B$18,G4)-1)/$B$18)) -> 0 | D21: =H5*(((POWER(1+$B$18,G5)-1)/$B$18)) -> 0 | E21: =H6*(((POWER(1+$B$18,G6)-1)/$B$18)) -> 0 | F21: =H7*(((POWER(1+$B$18,G7)-1)/$B$18)) -> 0 | G21: =H8*(((POWER(1+$B$18,G8)-1)/$B$18)) -> 0
A24: LUCRO CESANTE FUTURO | B24: =+A3 -> CONYUGÉ | C24: =+A4 -> HIJO (A) 2 | D24: =+A5 -> HIJO (A) 3 | E24: =+A6 -> HIJO (A) 4 | F24: =+A7 -> HIJO (A) 5 | G24: =+A8 -> HIJO (A) 6
A25: A LA FECHA DE LIQUIDACION | B25: =H3*(((POWER(1+$B$18,MIN(F2:F3))-1)/($B$18*(POWER(1+$B$18,MIN(F2:F3)))))) -> 273719271.8 | C25: =H4*(((POWER(1+$B$18,MIN(F2,F4))-1)/($B$18*(POWER(1+$B$18,MIN(F2,F4)))))) -> 0 | D25: =H5*(((POWER(1+$B$18,MIN(F2,F5))-1)/($B$18*(POWER(1+$B$18,MIN(F2,F5)))))) -> 0 | E25: =H6*(((POWER(1+$B$18,MIN(F2,F6))-1)/($B$18*(POWER(1+$B$18,MIN(F2,F6)))))) -> 0 | F25: =H7*(((POWER(1+$B$18,MIN(F2,F7))-1)/($B$18*(POWER(1+$B$18,MIN(F2,F7)))))) -> 0 | G25: =H8*(((POWER(1+$B$18,MIN(F2,F8))-1)/($B$18*(POWER(1+$B$18,MIN(F2,F8)))))) -> 0
A27: TOTAL | B27: =+B21+B25 -> 353856254 | C27: =+C21+C25 -> 0 | D27: 0 | E27: 0 | F27: 0 | G27: 0 | I27: =SUM(B27:H27) -> 353856254

Sheet LUCRO CESANTE X LESIONES
A1: 2017-02-27 | B1: H/M | C1: F. NACIMIENTO | D1: EDAD (AÑOS) | E1: HASTA (AÑOS) | F1: MESES DIF | G1: MESES LIQ | H1: PCL | J1: LC CONSOLIDADO
A2: LESIONADO 1 | B2: Hombre | C2: 1968-09-22 | D2: =IF(C2="",0,ROUND(($A$1-C2)/365,0)) -> 48 | E2: =+IF(B2="",0,IF(B2="Hombre",VLOOKUP(D2,'TABLA DE MORTALIDAD'!A:B,2,0)+D2,VLOOKUP(D2,'TABLA DE MORTALIDAD'!C:D,2,0)+D2)) -> 81.4 | F2: =+(E2-D2)*12 -> 400.8 | G2: =+(TODAY()-$A$1)/30 -> 94.06666667 | H2: 0.4379
A3: LESIONADO 2 | D3: =IF(C3="",0,ROUND(($A$1-C3)/365,0)) -> 0 | E3: =+IF(B3="",0,IF(B3="Hombre",VLOOKUP(D3,'TABLA DE MORTALIDAD'!A:B,2,0)+D3,VLOOKUP(D3,'TABLA DE MORTALIDAD'!C:D,2,0)+D3)) -> 0 | F3: =+(E3-D3)*12 -> 0 | G3: =+(TODAY()-$A$1)/30 -> 94.06666667
A4: LESIONADO 3 | D4: 0 | E4: =+IF(B4="",0,IF(B4="Hombre",VLOOKUP(D4,'TABLA DE MORTALIDAD'!A:B,2,0)+D4,VLOOKUP(D4,'TABLA DE MORTALIDAD'!C:D,2,0)+D4)) -> 0 | F4: 0 | G4: 94.06666667
A5: LESIONADO 4 | D5: 0 | E5: =+IF(B5="",0,IF(B5="Hombre",VLOOKUP(D5,'TABLA DE MORTALIDAD'!A:B,2,0)+D5,VLOOKUP(D5,'TABLA DE MORTALIDAD'!C:D,2,0)+D5)) -> 0 | F5: 0 | G5: 94.06666667
A6: LESIONADO 5 | D6: 0 | E6: =+IF(B6="",0,IF(B6="Hombre",VLOOKUP(D6,'TABLA DE MORTALIDAD'!A:B,2,0)+D6,VLOOKUP(D6,'TABLA DE MORTALIDAD'!C:D,2,0)+D6)) -> 0 | F6: 0 | G6: 94.06666667 | J6: LC FUTURO
A7: LESIONADO 6 | D7: 0 | E7: =+IF(B7="",0,IF(B7="Hombre",VLOOKUP(D7,'TABLA DE MORTALIDAD'!A:B,2,0)+D7,VLOOKUP(D7,'TABLA DE MORTALIDAD'!C:D,2,0)+D7)) -> 0 | F7: 0 | G7: 94.06666667
B9: =+B18 -> LESIONADO 1 | C9: =+C18 -> LESIONADO 2 | D9: LESIONADO 3 | E9: LESIONADO 4 | F9: LESIONADO 5 | G9: LESIONADO 6
A10: FECHA DE LIQUIDACIÓN | B10: 2024-08-01
A11: SALARIO BASE | B11: 737717
A12: RENTA ACTUALIZADA | B12: =B11*(K12/K13) -> 1115543.642 | J12: IPC FINAL | K12: =IF(NOT(VLOOKUP(L12,DANE!A:AJ,'LUCRO CESANTE X LESIONES'!N12,0)=0),VLOOKUP('LUCRO CESANTE X LESIONES'!L12,DANE!A:AJ,'LUCRO CESANTE X LESIONES'!N12,0),VLOOKUP('LUCRO CESANTE X LESIONES'!L12-1,DANE!A:AK,'LUCRO CESANTE X LESIONES'!N12,0)) -> 143.67 | L12: =MONTH(B10) -> 8 | M12: =YEAR(B10) -> 2024 | N12: =RIGHT(M12,2) -> 24
A13: INCREMENTO PRESTACIONAL (25%) | C13: =+C11*25% -> 0 | D13: 0 | E13: 0 | F13: 0 | G13: 0 | J13: IPC INICIAL | K13: =VLOOKUP(L13,DANE!A:AI,'LUCRO CESANTE X LESIONES'!N13,0) -> 95.01 | L13: =MONTH(A1) -> 2 | M13: =YEAR(A1) -> 2017 | N13: =RIGHT(M13,2) -> 17
A14: SALARIO BASE CON PRESTACIONES | B14: =+B12+B13 -> 1115543.642 | C14: =+C11+C13 -> 0 | D14: 0 | E14: 0 | F14: 0 | G14: 0
A16: i = INTERES | B16: 0.004867 | C16: 0.004867 | D16: 0.004867 | E16: 0.004867 | F16: 0.004867 | G16: 0.004867
A18: Porcentaje PCL proyectado | B18: =+A2 -> LESIONADO 1 | C18: =+A3 -> LESIONADO 2 | D18: =+A4 -> LESIONADO 3 | E18: =+A5 -> LESIONADO 4 | F18: =+A6 -> LESIONADO 5 | G18: =+A7 -> LESIONADO 6
A19: PCL | B19: =+H2 -> 0.4379 | C19: =+H3 -> 0 | D19: =+H4 -> 0 | E19: =+H5 -> 0 | F19: =+H6 -> 0 | G19: =+H7 -> 0
A20: SALARIO FINAL CON PCL | B20: =+B14*B19 -> 488496.5607 | C20: =+C14*C19 -> 0 | D20: 0 | E20: 0 | F20: 0 | G20: 0
A22: LUCRO CESANTE CONSOLIDADO | B22: =+B18 -> LESIONADO 1 | C22: =+C18 -> LESIONADO 2 | D22: LESIONADO 3 | E22: LESIONADO 4 | F22: LESIONADO 5 | G22: LESIONADO 6
A23: A LA FECHA DE LIQUIDACION | B23: =B20*(((POWER(1+$B$16,$G2)-1)/($B$16))) -> 58101083.95 | C23: =C20*(((POWER(1+$C$16,$G3)-1)/($C$16))) -> 0 | D23: =D20*(((POWER(1+$D$16,$G4)-1)/($D$16))) -> 0 | E23: =E20*(((POWER(1+$E$16,$G5)-1)/($E$16))) -> 0 | F23: =F20*(((POWER(1+$F$16,$G6)-1)/($F$16))) -> 0 | G23: =G20*(((POWER(1+$G$16,$G7)-1)/($G$16))) -> 0
A25: LUCRO CESANTE FUTURO | B25: =+B22 -> LESIONADO 1 | C25: =+C22 -> LESIONADO 2 | D25: LESIONADO 3 | E25: LESIONADO 4 | F25: LESIONADO 5 | G25: LESIONADO 6
A26: A LA FECHA DE LIQUIDACION | B26: =B20*(((POWER(1+$B$16,F2-1)/($B$16*(POWER(1+$B$16,F2)))))) -> 99883000.45 | C26: =C20*(((POWER(1+$C$16,F3-1)/($C$16*(POWER(1+$C$16,F3)))))) -> 0 | D26: =D20*(((POWER(1+$D$16,F4-1)/($D$16*(POWER(1+$D$16,F4)))))) -> 0 | E26: =E20*(((POWER(1+$E$16,F5-1)/($E$16*(POWER(1+$E$16,F5)))))) -> 0 | F26: =F20*(((POWER(1+$F$16,F6-1)/($F$16*(POWER(1+$F$16,F6)))))) -> 0 | G26: =G20*(((POWER(1+$G$16,F7-1)/($G$16*(POWER(1+$G$16,F7)))))) -> 0
A28: TOTAL | B28: =+B23+B26 -> 157984084.4 | C28: 0 | D28: =+D23+D26 -> 0 | E28: 0 | F28: 0 | G28: 0 | I28: =SUM(B28:H28) -> 157984084.4

Sheet EXTRAPATRIMONIALES

Sheet TABLA DE MORTALIDAD
A1: RESOLUCION 1555 de 2010 | C1: RESOLUCION 1555 de 2010
A2: TABLA DE MORTALIDAD RENTISTAS HOMBRES | C2: TABLA DE MORTALIDAD RENTISTAS MUJERES
A3: 15 | B3: 64.8 | C3: 15 | D3: 70
A4: 16 | B4: 63.9 | C4: 16 | D4: 69.1
A5: 17 | B5: 62.9 | C5: 17 | D5: 68.1
A6: 18 | B6: 61.9 | C6: 18 | D6: 67.1
A7: 19 | B7: 60.9 | C7: 19 | D7: 66.1
A8: 20 | B8: 60 | C8: 20 | D8: 65.1
A9: 21 | B9: 59 | C9: 21 | D9: 64.2
A10: 22 | B10: 58 | C10: 22 | D10: 63.2
A11: 23 | B11: 57.1 | C11: 23 | D11: 62.2
A12: 24 | B12: 56.1 | C12: 24 | D12: 61.2
A13: 25 | B13: 55.1 | C13: 25 | D13: 60.2
A14: 26 | B14: 54.2 | C14: 26 | D14: 59.3
A15: 27 | B15: 53.2 | C15: 27 | D15: 58.3
A16: 28 | B16: 52.3 | C16: 28 | D16: 57.3
A17: 29 | B17: 51.3 | C17: 29 | D17: 56.3
A18: 30 | B18: 50.3 | C18: 30 | D18: 55.4
A19: 31 | B19: 49.4 | C19: 31 | D19: 54.4
A20: 32 | B20: 48.4 | C20: 32 | D20: 53.4
A21: 33 | B21: 47.5 | C21: 33 | D21: 52.4
A22: 34 | B22: 46.5 | C22: 34 | D22: 51.5
A23: 35 | B23: 45.6 | C23: 35 | D23: 50.5
A24: 36 | B24: 44.6 | C24: 36 | D24: 49.5
A25: 37 | B25: 43.7 | C25: 37 | D25: 48.6
A26: 38 | B26: 42.7 | C26: 38 | D26: 47.6
A27: 39 | B27: 41.8 | C27: 39 | D27: 46.6
A28: 40 | B28: 40.8 | C28: 40 | D28: 45.7
A29: 41 | B29: 39.9 | C29: 41 | D29: 44.7
A30: 42 | B30: 39 | C30: 42 | D30: 43.7
A31: 43 | B31: 38 | C31: 43 | D31: 42.8
A32: 44 | B32: 37.1 | C32: 44 | D32: 41.8
A33: 45 | B33: 36.2 | C33: 45 | D33: 40.9
A34: 46 | B34: 35.3 | C34: 46 | D34: 39.9
A35: 47 | B35: 34.4 | C35: 47 | D35: 39
A36: 48 | B36: 33.4 | C36: 48 | D36: 38
A37: 49 | B37: 32.5 | C37: 49 | D37: 37.1
A38: 50 | B38: 31.6 | C38: 50 | D38: 36.2
A39: 51 | B39: 30.7 | C39: 51 | D39: 35.2
A40: 52 | B40: 29.9 | C40: 52 | D40: 34.3
A41: 53 | B41: 29 | C41: 53 | D41: 33.4
A42: 54 | B42: 28.1 | C42: 54 | D42: 32.5
A43: 55 | B43: 27.2 | C43: 55 | D43: 31.6
A44: 56 | B44: 26.4 | C44: 56 | D44: 30.6
A45: 57 | B45: 25.5 | C45: 57 | D45: 29.7
A46: 58 | B46: 24.6 | C46: 58 | D46: 28.8
A47: 59 | B47: 23.8 | C47: 59 | D47: 27.9
A48: 60 | B48: 23 | C48: 60 | D48: 27
A49: 61 | B49: 22.1 | C49: 61 | D49: 26.2
A50: 62 | B50: 21.3 | C50: 62 | D50: 25.3
A51: 63 | B51: 20.5 | C51: 63 | D51: 24.4
A52: 64 | B52: 19.7 | C52: 64 | D52: 23.5
A53: 65 | B53: 19 | C53: 65 | D53: 22.7
A54: 66 | B54: 18.2 | C54: 66 | D54: 21.8
A55: 67 | B55: 17.4 | C55: 67 | D55: 21
A56: 68 | B56: 16.7 | C56: 68 | D56: 20.2
A57: 69 | B57: 16 | C57: 69 | D57: 19.4
A58: 70 | B58: 15.3 | C58: 70 | D58: 18.6
A59: 71 | B59: 14.6 | C59: 71 | D59: 17.8
A60: 72 | B60: 14 | C60: 72 | D60: 17
A61: 73 | B61: 13.3 | C61: 73 | D61: 16.2
A62: 74 | B62: 12.7 | C62: 74 | D62: 15.5
A63: 75 | B63: 12.1 | C63: 75 | D63: 14.7
A64: 76 | B64: 11.5 | C64: 76 | D64: 14
A65: 77 | B65: 10.9 | C65: 77 | D65: 13.3
A66: 78 | B66: 1.04 | C66: 78 | D66: 12.6
A67: 79 | B67: 9.8 | C67: 79 | D67: 11.9
A68: 80 | B68: 9.3 | C68: 80 | D68: 11.3
A69: 81 | B69: 8.8 | C69: 81 | D69: 10.6
A70: 82 | B70: 8.3 | C70: 82 | D70: 10
A71: 83 | B71: 7.8 | C71: 83 | D71: 9.4
A72: 84 | B72: 7.4 | C72: 84 | D72: 8.9
A73: 85 | B73: 7 | C73: 85 | D73: 8.3
A74: 86 | B74: 6.6 | C74: 86 | D74: 7.8
A75: 87 | B75: 6.2 | C75: 87 | D75: 7.3
A76: 88 | B76: 5.8 | C76: 88 | D76: 6.8
A77: 89 | B77: 5.4 | C77: 89 | D77: 6.3
A78: 90 | B78: 5.1 | C78: 90 | D78: 5.8
A79: 91 | B79: 4.8 | C79: 91 | D79: 5.4
A80: 92 | B80: 4.5 | C80: 92 | D80: 5
A81: 93 | B81: 4.2 | C81: 93 | D81: 4.6
A82: 94 | B82: 3.9 | C82: 94 | D82: 4.2
A83: 95 | B83: 3.6 | C83: 95 | D83: 3.9
A84: 96 | B84: 3.3 | C84: 96 | D84: 3.5
A85: 97 | B85: 3.1 | C85: 97 | D85: 3.2
A86: 98 | B86: 2.9 | C86: 98 | D86: 3
A87: 99 | B87: 2.6 | C87: 99 | D87: 2.7
A88: 100 | B88: 2.4 | C88: 100 | D88: 2.5
A89: 101 | B89: 2.2 | C89: 101 | D89: 2.3
A90: 102 | B90: 2.1 | C90: 102 | D90: 2.1
A91: 103 | B91: 1.9 | C91: 103 | D91: 1.9
A92: 104 | B92: 1.7 | C92: 104 | D92: 1.7
A93: 105 | B93: 1.6 | C93: 105 | D93: 1.6
A94: 106 | B94: 1.4 | C94: 106 | D94: 1.4
A95: 107 | B95: 1.3 | C95: 107 | D95: 1.3
A96: 108 | B96: 1.1 | C96: 108 | D96: 1.1
A97: 109 | B97: 0.9 | C97: 109 | D97: 0.9
A98: 110 | B98: 0.5 | C98: 110 | D98: 0.5

Sheet DANE
A1: CRUCE | B1: Mes | C1: 2003 | D1: 2004 | E1: 2005 | F1: 2006 | G1: 2007 | H1: 2008 | I1: 2009 | J1: 2010 | K1: 2011 | L1: 2012 | M1: 2013 | N1: 2014 | O1: 2015 | P1: 2016 | Q1: 2017 | R1: 2018 | S1: 2019 | T1: 2020 | U1: 2021 | V1: 2022 | W1: 2023 | X1: 2024
A2: 1 | B2: Enero | C2: 50.42 | D2: 53.54 | E2: 56.45 | F2: 59.02 | G2: 61.8 | H2: 65.51 | I2: 70.21 | J2: 71.69 | K2: 74.12 | L2: 76.75 | M2: 78.28 | N2: 79.95 | O2: 83 | P2: 89.19 | Q2: 94.07 | R2: 97.53 | S2: 100.6 | T2: 104.24 | U2: 105.91 | V2: 113.26 | W2: 128.27 | X2: 138.98
A3: 2 | B3: Febrero | C3: 50.98 | D3: 54.18 | E3: 57.02 | F3: 59.41 | G3: 62.53 | H3: 66.5 | I3: 70.8 | J3: 72.28 | K3: 74.57 | L3: 77.22 | M3: 78.63 | N3: 80.45 | O3: 83.96 | P3: 90.33 | Q3: 95.01 | R3: 98.22 | S3: 101.18 | T3: 104.94 | U3: 106.58 | V3: 115.11 | W3: 130.4 | X3: 140.49
A4: 3 | B4: Marzo | C4: 51.51 | D4: 54.71 | E4: 57.46 | F4: 59.83 | G4: 63.29 | H4: 67.04 | I4: 71.15 | J4: 72.46 | K4: 74.77 | L4: 77.31 | M4: 78.79 | N4: 80.77 | O4: 84.45 | P4: 91.18 | Q4: 95.46 | R4: 98.45 | S4: 101.62 | T4: 105.53 | U4: 107.12 | V4: 116.26 | W4: 131.77 | X4: 141.48
A5: 4 | B5: Abril | C5: 52.1 | D5: 54.96 | E5: 57.72 | F5: 60.09 | G5: 63.85 | H5: 67.51 | I5: 71.38 | J5: 72.79 | K5: 74.86 | L5: 77.42 | M5: 78.99 | N5: 81.14 | O5: 84.9 | P5: 91.63 | Q5: 95.91 | R5: 98.91 | S5: 102.12 | T5: 105.7 | U5: 107.76 | V5: 117.71 | W5: 132.8 | X5: 142.32
A6: 5 | B6: Mayo | C6: 52.36 | D6: 55.17 | E6: 57.95 | F6: 60.29 | G6: 64.05 | H6: 68.14 | I6: 71.39 | J6: 72.87 | K6: 75.07 | L6: 77.66 | M6: 79.21 | N6: 81.53 | O6: 85.12 | P6: 92.1 | Q6: 96.12 | R6: 99.16 | S6: 102.44 | T6: 105.36 | U6: 108.84 | V6: 118.7 | W6: 133.38 | X6: 142.92
A7: 6 | B7: Junio | C7: 52.33 | D7: 55.51 | E7: 58.18 | F7: 60.48 | G7: 64.12 | H7: 68.73 | I7: 71.35 | J7: 72.95 | K7: 75.31 | L7: 77.72 | M7: 79.39 | N7: 81.61 | O7: 85.21 | P7: 92.54 | Q7: 96.23 | R7: 99.31 | S7: 102.71 | T7: 104.97 | U7: 108.78 | V7: 119.31 | W7: 133.78 | X7: 143.38
A8: 7 | B8: Julio | C8: 52.26 | D8: 55.49 | E8: 58.21 | F8: 60.73 | G8: 64.23 | H8: 69.06 | I8: 71.32 | J8: 72.92 | K8: 75.42 | L8: 77.7 | M8: 79.43 | N8: 81.73 | O8: 85.37 | P8: 93.02 | Q8: 96.18 | R8: 99.18 | S8: 102.94 | T8: 104.97 | U8: 109.14 | V8: 120.27 | W8: 134.45 | X8: 143.67
A9: 8 | B9: Agosto | C9: 52.42 | D9: 55.51 | E9: 58.21 | F9: 60.96 | G9: 64.14 | H9: 69.19 | I9: 71.35 | J9: 73 | K9: 75.39 | L9: 77.73 | M9: 79.5 | N9: 81.9 | O9: 85.78 | P9: 92.73 | Q9: 96.32 | R9: 99.3 | S9: 103.03 | T9: 104.96 | U9: 109.62 | V9: 121.5 | W9: 135.39 | X9: 143.67
A10: 9 | B10: Septiembre | C10: 52.53 | D10: 55.67 | E10: 58.46 | F10: 61.14 | G10: 64.2 | H10: 69.06 | I10: 71.28 | J10: 72.9 | K10: 75.62 | L10: 77.96 | M10: 79.73 | N10: 82.01 | O10: 86.39 | P10: 92.68 | Q10: 96.36 | R10: 99.47 | S10: 103.26 | T10: 105.29 | U10: 110.04 | V10: 122.63 | W10: 136.11
A11: 10 | B11: Octubre | C11: 52.56 | D11: 55.66 | E11: 58.6 | F11: 61.05 | G11: 64.2 | H11: 69.3 | I11: 71.19 | J11: 72.84 | K11: 75.77 | L11: 78.08 | M11: 79.52 | N11: 82.14 | O11: 86.98 | P11: 92.62 | Q11: 96.37 | R11: 99.59 | S11: 103.43 | T11: 105.23 | U11: 110.06 | V11: 123.51 | W11: 136.45
A12: 11 | B12: Noviembre | C12: 52.75 | D12: 55.82 | E12: 58.66 | F12: 61.19 | G12: 64.51 | H12: 69.49 | I12: 71.14 | J12: 72.98 | K12: 75.87 | L12: 77.98 | M12: 79.35 | N12: 82.25 | O12: 87.51 | P12: 92.73 | Q12: 96.55 | R12: 99.7 | S12: 103.54 | T12: 105.08 | U12: 110.6 | V12: 124.46 | W12: 137.09
A13: 12 | B13: Diciembre | C13: 53.07 | D13: 55.99 | E13: 58.7 | F13: 61.33 | G13: 64.82 | H13: 69.8 | I13: 71.2 | J13: 73.45 | K13: 76.19 | L13: 78.05 | M13: 79.56 | N13: 82.47 | O13: 88.05 | P13: 93.11 | Q13: 96.92 | R13: 100 | S13: 103.8 | T13: 105.48 | U13: 111.41 | V13: 126.03 | W13: 137.72
A15: https://www.dane.gov.co/index.php/estadisticas-por-tema/precios-y-costos/indice-de-precios-al-consumidor-ipc

Sheet Hoja1
C3: 0 | D3: 8281160 | E3: 828116 | F3: =+J3-E3 -> 1656232 | H3: 0 | I3: 10000000 | J3: 2484348
C4: 8363971.6 | D4: 20702900 | E4: 1656232 | F4: =+J4-E4 -> 1656232 | H4: 10000001 | I4: 20000000 | J4: 3312464
C5: 20785711.6 | D5: 41405800 | E5: 3312464 | F5: =+J5-E5 -> 2484348 | H5: 20000001 | I5: 50000000 | J5: 5796812
C6: 41488611.6 | D6: 161482620 | E6: 6624928 | F6: =+J6-E6 -> 1656232 | H6: 50000001 | I6: 100000000 | J6: 8281160
C7: 161565431.6 | D7: 482791628 | E7: 13249856 | F7: =+J8-E7 -> 0 | H7: 100000001 | I7: 200000000 | J7: 10765508
C8: 482874439.6 | D8: 804100636 | E8: 19874784 | F8: =+J10-E8 -> -1656232 | H8: 200000001 | I8: 400000000 | J8: 13249856
C9: 804183447.6 | D9: 1608201272 | E9: 26499712 | F9: =+J13-E9 -> -828116 | H9: 400000001 | I9: 600000000 | J9: 15734204
C10: 1608284084 | D10: 4140580000 | E10: 29812176 | F10: =+J21-E10 -> 14906088 | H10: 600000001 | I10: 800000000 | J10: 18218552
C11: 4140662812 | D11: 8281160000 | E11: 33124640 | F11: =+J23-E11 -> 16562320 | H11: 800000001 | I11: 1000000000 | J11: 20702900
C12: 8281242812 | D12: 10000000000000 | E12: 43062032 | F12: =+J23-E12 -> 6624928 | H12: 1000000001 | I12: 1300000000 | J12: 23187248
H13: 1300000001 | I13: 1600000000 | J13: 25671596
H14: 1600000001 | I14: 1900000000 | J14: 28155944
H15: 1900000001 | I15: 2200000000 | J15: 30640292
H16: 2200000001 | I16: 2500000000 | J16: 33124640
H17: 2500000001 | I17: 2800000000 | J17: 35608988
H18: 2800000001 | I18: 3100000000 | J18: 38093336
H19: 3100000001 | I19: 3400000000 | J19: 40577684
H20: 3400000001 | I20: 3700000000 | J20: 42233916
H21: 3700000001 | I21: 4000000000 | J21: 44718264
H22: 4000000001 | I22: 4500000000 | J22: 47202612
H23: 4500000001 | I23: 5000000000 | J23: 49686960
H24: 5000000001 | J24: a convenir
